Cogmind - Beta 16.1 @@@ ROGUE MODE // 2026.02.22 @ 13:51:48 Player: TheSkyeDoctor Result: Destroyed by K2-QGP(R) with Subdweller Laser Performance ------------- Evolutions (0) 0 Regions Visited (2) 400 Robots Destroyed (9) 45 Value Destroyed (174) 174 Prototype IDs (0) 0 Alien Tech Used (0) 0 Bonus (0) 0 TOTAL SCORE: 619 Bonus ------- None Cogmind --------- Core Integrity 0/250 Matter 186/400 Energy 100/100 System Corruption 0% Temperature Cool (6) Movement Rolling (115) Ox1 Location -10/Subcaves Parts ------- > --- POWER (1) -------- (None) > --- PROPULSION (2) --- Compact Wheel > --- UTILITY (2) ------ Large Storage Unit Medium Matter Pod > --- WEAPON (2) ------- (None) > --- INVENTORY (15) --- Light Treads Improved Heat Sink Terrain Scanner Seismic Detector Targeting Computer Peak State ------------ > --- POWER ------------ Light Nuclear Core > --- PROPULSION ------- Light Treads Light Treads > --- UTILITY ---------- Small Storage Unit Seismic Detector > --- WEAPON ----------- Small Laser Assault Rifle > --- INVENTORY -------- Ion Engine Light Ion Engine Compact Wheel Compact Wheel Improved Heat Sink Medium Matter Pod Terrain Scanner Weapon Shielding [Rating: 10] Favorites ----------- Power Light Nuclear Core Engine Light Ion Engine Power Core Light Nuclear Core Propulsion Light Treads Treads Light Treads Wheel Compact Wheel Utility Seismic Detector Device Seismic Detector Storage Small Storage Unit Protection Weapon Shielding Weapon Small Laser Energy Gun Small Laser Ballistic Gun Assault Rifle Launcher Grenade Launcher Build | -11 -10 -10 ------- Run | Yrd Mat Sub Slots Evolved . | . . . Power . | . . . Propulsion . | . . . Utility . | . . . Weapon . | . . . Parts Attached 17 | 6 3 8 Power 3 | 1 1 1 Engine 2 | 1 . 1 Core 1 | . 1 . Reactor . | . . . Propulsion 5 | 2 . 3 Treads 3 | 2 . 1 Leg . | . . . Wheel 2 | . . 2 Hover . | . . . Flight . | . . . Utility 5 | 1 2 2 Device 1 | . 1 . Storage 3 | 1 1 1 Processor . | . . . Hackware . | . . . Protection 1 | . . 1 Artifact . | . . . Weapon 4 | 2 . 2 Energy Gun 1 | 1 . . Energy Cannon . | . . . Ballistic Gun 1 | 1 . . Ballistic Cannon . | . . . Launcher 2 | . . 2 Special Weapon . | . . . Impact Weapon . | . . . Slashing Weapon . | . . . Piercing Weapon . | . . . Special Melee Weapon . | . . . Unidentified Prototypes . | . . . Parts Lost 11 | . . 11 Power 3 | . . 3 Propulsion 3 | . . 3 Utility 1 | . . 1 Weapon 4 | . . 4 Highest Loss Streak 10 | . . 10 To Critical Strikes 1 | . . 1 Average Backups 7 | 3 7 10 Power 1 | 1 1 1 Propulsion 2 | 2 2 2 Utility 3 | . 3 4 Weapon . | . . 1 Tool/Special . | . . . Unused Backups 3 | . . 3 Power . | . . . Propulsion . | . . . Utility 3 | . . 3 Weapon . | . . . Tool/Special . | . . . Average Slot Usage (%) 97 | . 99 94 Engine 5 | . 5 6 Core 7 | . 8 6 Treads 26 | . 28 25 Device 12 | . 13 11 Storage 14 | . 14 15 Energy Gun 13 | . 14 12 Ballistic Gun 11 | . 14 8 Launcher 1 | . . 4 Peak Build Rating 10 | 6 10 10 Average Rating 8 | 4 8 8 On Entrance 5 | . 6 10 Avg Prop Armor Cover (%) . | . . . Naked Turns . | . . . Heaviest Build 29 | 11 29 29 Greatest Support 40 | 40 40 40 Greatest Overweight (x) 1 | 1 . 1 Average Overweight (x) . | . . . Largest Inventory Capacity 15 | 8 15 15 Average Capacity 11 | 7 9 15 Most Carried 11 | 8 11 11 Average Carried 7 | 3 7 10 Final Capacity 15 | 8 15 15 Final Carried 11 | 4 11 5 Class Distribution -------------------- 100% | Mutant Dominant Class ---------------- Mutant | -10/Materials Mutant | -10/Subcaves Resources | -11 -10 -10 ----------- Run | Yrd Mat Sub Matter Collected 367 | 201 87 79 Remotely . | . . . Salvage Created 265 | 93 82 90 Parts 19 | 7 6 6 Haulers Intercepted . | . . . Recyclers Shooed . | . . . Parts Field Recycled . | . . . Retrieved Matter . | . . . Parts Self-Destructed 13 | . . 13 Prevented . | . . . Parts Restored . | . . . Kills | -11 -10 -10 ------- Run | Yrd Mat Sub Combat Hostiles Destroyed 7 | . 2 5 Guns 6 | . 2 4 AOE 1 | . . 1 Classes Destroyed 5 | 2 1 2 Tunneler 1 | 1 . . Recycler 1 | 1 . . Swarmer 4 | . . 4 Grunt 2 | . 2 . Subdweller 1 | . . 1 Best Kill Streak 4 | 1 2 4 Combat Bots Only 4 | . 2 4 Max Kills in Single Turn 2 | 1 2 1 Gunslinging 1 | . 1 . Exploded 1 | . . 1 Melee . | . . . Uniques/NPCs Destroyed . | . . . Combat | -11 -10 -10 -------- Run | Yrd Mat Sub Hostile Shots Fired 118 | . 9 109 Missed 36 | . 3 33 Hits 82 | . 6 76 Projectile 82 | . 6 76 Critical Strikes 3 | . . 3 Actively Blocked 1 | . . 1 Damage Taken 1403 | . 124 1279 Core 268 | . 52 216 Absorbed by Shields . | . . . Redirected to Shielding 54 | . . 54 Core Remaining (%) 100 | 100 . . Volleys Fired 26 | 3 7 16 Largest 2 | 2 2 2 Hottest 70 | 60 60 70 Shots Fired 48 | 6 11 31 Gun 41 | 6 11 24 Cannon . | . . . Launcher 7 | . . 7 Special . | . . . Kinetic 22 | 3 7 12 Thermal 19 | 3 4 12 Explosive 7 | . . 7 Electromagnetic . | . . . Robot Hit Streak 10 | 3 2 10 Robot Miss Streak 3 | 1 3 1 Penetration Max . | . . . Secondary Targets 1 | . 1 . Max Gunslinging Chain 1 | . 1 . Shots Hit Robots 29 | 3 6 20 Core Hits 16 | 3 5 8 Critical Kills . | . . . Critical Parts Destroyed . | . . . Critical Strikes . | . . . Melee Attacks . | . . . Impact . | . . . Slashing . | . . . Piercing . | . . . Sneak Attacks . | . . . Combat Hostiles . | . . . Follow-up Attacks . | . . . Damage Inflicted 631 | 48 78 505 Guns 340 | 48 78 214 Cannons . | . . . Explosions 291 | . . 291 Melee . | . . . Ramming . | . . . Kinetic 220 | 25 46 149 Thermal 120 | 23 32 65 Explosive 291 | . . 291 Electromagnetic . | . . . Impact . | . . . Slashing . | . . . Piercing . | . . . Highest Corruption . | . . . Average Corruption . | . . . Corruption Purged . | . . . Corruption Blocked . | . . . Overload Shots . | . . . Overflow Damage . | . . . Projectiles . | . . . Explosions . | . . . Melee . | . . . Knockbacks . | . . . Impact . | . . . Kinetic . | . . . Secondary . | . . . Self-Inflicted Damage 141 | . . 141 Shots 5 | . . 5 Rammed . | . . . Targets Rammed . | . . . Kicked . | . . . Crushed . | . . . Highest Temperature 33 | . 33 . Average Temperature 20 | . 20 . Received Heat Transfer 390 | . 42 348 Siege Activations . | . . . Martial Activations . | . . . Shielding Activations . | . . . Robots Disrupted . | . . . Combat Hostiles . | . . . Robots Corrupted . | . . . Combat Hostiles . | . . . Parts Fried . | . . . Impact Corruptions . | . . . Robots Melted . | . . . Combat Hostiles . | . . . Parts Melted . | . . . Heat Transferred 275 | 50 75 150 Parts Sabotaged . | . . . Parts Stolen . | . . . Parts Stripped . | . . . Power Chain Reactions . | . . . Alert | -11 -10 -10 ------- Run | Yrd Mat Sub Maximum Alert Level . | . . . Low Security (%) 100 | 100 100 . Level 1 . | . . . Level 2 . | . . . Level 3 . | . . . Level 4 . | . . . Level 5 . | . . . High Security . | . . . Max Security . | . . . Peak Influence 50 | 5 50 . Initial . | . . . Average 5 | 1 6 . Influence Increases 245 | 10 50 185 Destroy 0b10 Robot/C 120 | . 40 80 Destroy 0b10 Robot/NC 10 | 10 . . Destroy Leader 10 | . 10 . Lose Combat Pursuer 105 | . . 105 Influence Decreases 245 | 10 50 185 Time Decay 140 | 10 50 80 Lost Part 105 | . . 105 Squads Dispatched . | . . . Investigation . | . . . Extermination . | . . . Reinforcement . | . . . Assault . | . . . Garrison . | . . . Intercept . | . . . Searches Triggered . | . . . Construction Impeded . | . . . Haulers Reinforced . | . . . Active Scanning Responses . | . . . Cargo Convoy Interrupts . | . . . Stealth | -11 -10 -10 --------- Run | Yrd Mat Sub Distress Signals . | . . . Communications Jammed . | . . . Distress Signals . | . . . Times Spotted 17 | . 5 12 Peak Tracking Total 6 | . 2 6 Tactical Retreats 3 | . . 3 Traps | -11 -10 -10 ------- Run | Yrd Mat Sub Traps Triggered 1 | . 1 . Indirectly . | . . . Trap Hack Attempts . | . . . Triggered . | . . . Disarmed . | . . . Reprogrammed . | . . . Reused . | . . . Traps Extracted . | . . . Installed . | . . . Triggered . | . . . Machines | -11 -10 -10 ---------- Run | Yrd Mat Sub Machines Disabled 1 | . . 1 Max in Single Turn 1 | . . 1 Machines Repaired . | . . . Machines Dismantled . | . . . Machines Sabotaged . | . . . Overloaded Fab Kills . | . . . Hacking | -11 -10 -10 --------- Run | Yrd Mat Sub Machines Accessed 1 | . 1 . Terminals 1 | . 1 . Fabricators . | . . . Repair Stations . | . . . Recycling Units . | . . . Scanalyzers . | . . . Garrison Access . | . . . Total Hacks 2 | . 2 . Successful 1 | . 1 . Failed 1 | . 1 . Catastrophic . | . . . Database Lockouts . | . . . Manual . | . . . Terminals 2 | . 2 . Fabricators . | . . . Repair Stations . | . . . Recycling Units . | . . . Scanalyzers . | . . . Garrison Access . | . . . Terminal Hacks 1 | . 1 . Zone Layout 1 | . 1 . Fabricator Hacks . | . . . Repair Station Hacks . | . . . Recycling Unit Hacks . | . . . Scanalyzer . | . . . Garrison Access Hacks . | . . . Unauthorized Hacks . | . . . Terminals . | . . . Fabricators . | . . . Repair Stations . | . . . Recycling Units . | . . . Scanalyzers . | . . . Garrison Access . | . . . Data Cores Recovered . | . . . Used . | . . . Hacking Detections . | . . . Full Trace Events . | . . . Feedback Events . | . . . Feedback Blocked . | . . . Robot Schematics Acquired . | . . . Robots Built . | . . . Authchips . | . . . Time . | . . . Total Robot Build Rating . | . . . Part Schematics Acquired . | . . . Parts Built . | . . . Authchips . | . . . Time . | . . . Total Part Build Rating . | . . . Part Studies Acquired . | . . . Parts Repaired . | . . . Time . | . . . Parts Recycled . | . . . Recycled Matter . | . . . Retrieved Matter . | . . . Retrieved Components . | . . . Parts Scanalyzed . | . . . Part Schematics Acquired . | . . . Parts Damaged . | . . . Bothacking | -11 -10 -10 ------------ Run | Yrd Mat Sub Used RIF Installer . | . . . Robots Hacked . | . . . Non-combat . | . . . Combat . | . . . Robot Hacks Applied . | . . . Relay Couplers Released . | . . . Fabnet Peak Effective % . | . . . Robots Rewired . | . . . Allies Hacked . | . . . Hacks Repelled . | . . . Allies | -11 -10 -10 -------- Run | Yrd Mat Sub Total Allies . | . . . Largest Group . | . . . Highest-Rated Group . | . . . Highest-Rated Ally . | . . . Total Orders . | . . . Ally Attacks . | . . . Total Damage . | . . . Kills . | . . . Allies Corrupted . | . . . Allies Melted . | . . . Intel | -11 -10 -10 ------- Run | Yrd Mat Sub Active Infowar (turns) 642 | . 410 232 Seismic 642 | . 410 232 Robot Analysis Total . | . . . Derelict Logs Recovered . | . . . Drone Launches . | . . . Drone Recoveries . | . . . Exploration | -11 -10 -10 ------------- Run | Yrd Mat Sub Turns Passed 825 | 115 421 289 Spaces Moved 406 | 59 223 124 Core 18 | 18 . . Treads 365 | 41 223 101 Legs . | . . . Wheels 23 | . . 23 Hover . | . . . Flight . | . . . Fastest Speed 50 | 50 160 100 Average Speed 153 | 132 160 151 Slowest Speed 160 | 160 160 160 Overloaded Moves . | . . . Propulsion Burnouts . | . . . Robots Hopped . | . . . Potential Cave-ins . | . . . Cave-ins Triggered . | . . . Exploration Rate (%) 17 | 6 39 8 Regions Visited 2 Branch Regions 1 Pre-discovered Areas . | . . . Known Exits Taken . | . . . Unknown Exits Taken 2 | 1 1 . Scrap Searched . | . . . Spaces Dug . | . . . Terrain Destroyed 38 | . . 38 Melee . | . . . Projectile . | . . . AOE 38 | . . 38 Terrain Rammed . | . . . Walls Destroyed . | . . . Machines Disabled . | . . . Actions | -11 -10 -10 --------- Run | Yrd Mat Sub Total 557 | 89 276 192 Wait 88 | 13 35 40 Move 404 | 58 222 124 Hop . | . . . Pick Up 18 | 9 8 1 Fast Attach 1 | 1 . . Attach 13 | 5 1 7 Detach . | . . . Swap 6 | . 2 4 Drop 1 | . 1 . Fire 26 | 3 7 16 Melee . | . . . Ram . | . . . Kick . | . . . Crush . | . . . Escape Stasis . | . . . Rewire . | . . . Trap . | . . . Miscellaneous . | . . . Route ------- -11/Scrapyard -10/Materials (discovered 2 exits: [*Min] / [*Sub]) -10/Subcaves (discovered 1 exit: [*Rec]) History --------- Turn | Location | Event 28 | -11/Scrapyard | Discovered new exit (range 14) 116 | -11/Scrapyard | Entered Materials 318 | -10/Materials | Build established: Mutant 390 | -10/Materials | Discovered new exit (range 15) 517 | -10/Materials | Discovered new exit (range 13) 537 | -10/Materials | Entered Subcaves 538 | -10/Subcaves | Approached by a straggling Scientist 592 | -10/Subcaves | Shifting Twisted Machinery released Shrapnel Trap 592 | -10/Subcaves | Shifting Twisted Machinery released Sub. Monowheel 672 | -10/Subcaves | Discovered new exit (range 8) 706 | -10/Subcaves | Shifting Twisted Machinery released Spk. Treads 787 | -10/Subcaves | Ambushed by Subdweller buried in earth 787 | -10/Subcaves | Ambushed by Subdweller buried in earth 793 | -10/Subcaves | Core integrity fell below 50% 805 | -10/Subcaves | Core integrity fell below 20% 826 | -10/Subcaves | Destroyed by K2-QGP(R) with Subdweller Laser Last Messages --------------- YZ-7JI(c): "I think it's somewhere east of here" Acquired Spk. Treads. Sml. Laser destroyed. Lgt. Ion Engine destroyed. Weapon Shielding destroyed. [Achievement: Do Not Disturb] L3-Q52(R): "ARGHSUB!" 72-OST(R): "ARGHSUB!" Grenade Launcher destroyed. Spk. Treads destroyed. 72-OST(R) destroyed. Lgt. Treads destroyed. Grenade Launcher destroyed. L3-Q52(R) affixes Scrap Shield Fragment to Scrap Shield. Acquired 30 matter. Assault Rifle destroyed. Com. Wheel destroyed. Ion Engine destroyed. [Achievement: Achiever] Map ----- +----------------------------------------------------+ | #????? ?# ## # #??????????????? | | ## ##????" ??# " ??????????? | | # ######""#?# # #### #???????????????? | | # # """"#### ### ! ##?????????????????????? | | # """"" # & #??????????????????????? | | #? """" ## "##?????????????????????? | | # ##### """#### #?????????????????????? | | ##### # ## =""& ## " #?????????????????????? | | ##???## ## ##?????????????????????? | | ????## ## " #?????????????????????? | | ???# ## # " ##?????????????????????? | | ??# ###### # ## #?????????????????????? | | #####?## #???# ## #R#?##?????????????????????? | | ##??????# #??########## ##???????????????????????? | | ????????# #?? """#??##R #???????????????????????? | | ????????# ## "#??#"R #???????????????????????? | | ????????## # "#??## ##??????????????????????? | | ?????????#% ""#??# #??????????????????????? | | ?????? %$=& <#?# #??????????????????????? | | ?????#####%& "##?# ##??????????????????????? | | ?????????!## #??# ##??????????????????????? | | ????????# ?? #??## ###????????????????????? | | ???????? #??" #??## #????????????????????? | | ???????# ???## #???# ##????????????????????? | | ???????#?????# # ""## ##????????????????????? | | ?????????????? "" @ #????????????????????? | | ?????????????? "" ##????????????????????? | | ???????????????# "# ######?????????????????????? | | ????????????????#??##????????????????????????????? | | ?????????????????????????????????????????????????? | | ?????????????????????????????????????????????????? | | ?????????????????????????????????????????????????? | | ?????????????????????????????????????????????????? | | ?????????????????????????????????????????????????? | | ?????????????????????????????????????????????????? | | ?????????????????????????????????????????????????? | | ?????????????????????????????????????????????????? | | ?????????????????????????????????????????????????? | | ?????????????????????????????????????????????????? | | ?????????????????????????????????????????????????? | | ?????????????????????????????????????????????????? | | ?????????????????????????????????????????????????? | | ?????????????????????????????????????????????????? | | ?????????????????????????????????????????????????? | | ?????????????????????????????????????????????????? | | ?????????????????????????????????????????????????? | | ?????????????????????????????????????????????????? | | ?????????????????????????????????????????????????? | | ?????????????????????????????????????????????????? | | ?????????????????????????????????????????????????? | +----------------------------------------------------+ Best States ------------- Heat Dissipation 25 Energy Generation 14 Energy Capacity 250 Matter Stores 281 Matter Capacity 400 Sight Range 16 Terrain Scan Density 10 Weapon Shielding 33 Evasion (%) 50 Recoil Reduction 2 Item Schematics ----------------- None Robot Schematics ------------------ None Fabricated ------------ Nothing Repaired ---------- Nothing Studied --------- None Alien Tech Used ----------------- None Achievements -------------- Achiever Do Not Disturb Challenges ------------ None Game ------ Seed FlightKineticFlakker Manual? 0 Play Time 00:09:38 Cumulative 36.5 hours Start 2026.02.22 @ 13:44:58 End 2026.02.22 @ 13:51:48 Sessions 1 Manual Loads 0 Difficulty Rogue Special Mode None Game No. 88 Rogue 88 Adventurer 0 Explorer 0 Win Type - Total 0 Types 0/0/0/0/0/0/0/0/0/0 Lore% 27 Gallery% 34 Achievement% 25 Wizard Run 0 Options --------- Layout 1 ASCII 0 Keyboard 0 Movement Mouse Keybinds 0 Fullscreen 1 Font 24/Smallcaps Map View 50x35 Zoom Use 0% Tactical HUD 0 Map Filters NONE Filters NONE Steam 1 RUN: a0bc96b4-0713-41db-b315-073a1613cfa8